[Event "Fall IM Norm Invitational 2020"]
[Site "Charlotte"]
[Date "2020.10.04"]
[Round "8.4"]
[White "Krykun, Yuriy"]
[Black "Vivekananthan, Anish"]
[Result "1/2-1/2"]
[ECO "A46"]
[WhiteElo "2371"]
[BlackElo "2239"]
[Annotator "ChessBase"]
[PlyCount "176"]
[EventDate "2020.09.30"]
[EventType "tourn"]
[EventCountry "USA"]
[SourceTitle "playchess.com"]
[Source "ChessBase"]
[SourceQuality "1"]
[TimeControl "5400+30"]

1. Nf3 {[%emt 1:30:30]} Nf6 {[%emt 1:30:30]} 2. g3 {[%emt 0:00:30]} b5 {[%emt 0:00:30]} 3. Bg2 {[%emt 0:00:30]} Bb7 {[%emt 0:00:30]} 4. O-O {[%emt 0:00:30]} e6 {[%emt 0:00:30]} 5. d4 {[%emt 0:00:30]} c5 {[%emt 0:00:30]} 6. c3 {[%emt 0:00:30]} Be7 {[%emt 0:00:30]} 7. Bg5 {[%emt 0:00:30]} d6 {[%emt 0:00:30]} 8. dxc5 {[%emt 0:00:30]} dxc5 {[%emt 0:00:30]} 9. Qxd8+ {[%emt 0:00:30]} Bxd8 10. a4 {[%emt 0:00:30]} b4 {[%emt 0:01:00]} 11. Ne5 {[%emt 0:00:30]} Bxg2 {[%emt 0:00:30]} 12. Kxg2 {[%emt 0:00:30]} h6 {[%emt 0:00:30]} 13. Be3 {[%emt 0:00:30]} Be7 {[%emt 0:00:30]} 14. c4 {[%emt 0:00:30]} Nfd7 {[%emt 0:00:30]} 15. Nd3 {[%emt 0:00:30]} Nc6 {[%emt 0:00:30]} 16. Nd2 {[%emt 0:00:30]} Na5 {[%emt 0:00:30]} 17. b3 {[%emt 0:00:30]} Rc8 {[%emt 0:00:30]} 18. Rab1 {[%emt 0:00:30]} O-O {[%emt 0:00:30]} 19. Rfd1 {[%emt 0:00:30]} Nf6 {[%emt 0:00:30]} 20. f3 {[%emt 0:00:30]} Rfd8 {[%emt 0:00:30]} 21. g4 {[%emt 0:00:30]} Nb7 {[%emt 0:00:30]} 22. Kf1 {[%emt 0:00:30]} a6 {[%emt 0:00:30]} 23. Bf2 {[%emt 0:00:30]} Rd7 {[%emt 0:00:30]} 24. Ke1 {[%emt 0:00:30]} Ne8 {[%emt 0:00:30]} 25. h3 {[%emt 0:00:30]} Ned6 {[%emt 0:00:30]} 26. e3 {[%emt 0:00:30]} f6 {[%emt 0:00:30]} 27. Ke2 {[%emt 0:00:30]} Kf7 {[%emt 0:00:30]} 28. e4 {[%emt 0:00:30]} e5 {[%emt 0:00:30]} 29. f4 {[%emt 0:00:30]} exf4 {[%emt 0:00:30]} 30. Nxf4 {[%emt 0:00:30]} Re8 {[%emt 0:00:30]} 31. Nd5 {[%emt 0:00:30]} Bd8 {[%emt 0:00:30]} 32. Kd3 {[%emt 0:00:30]} Nc8 {[%emt 0:00:30]} 33. Nf3 {[%emt 0:00:30]} Ne7 {[%emt 0:00:30]} 34. Re1 {[%emt 0:00:30]} Bc7 {[%emt 0:00:30]} 35. Kc2 {[%emt 0:00:30]} Nc6 {[%emt 0:00:30]} 36. Rbd1 {[%emt 0:00:30]} Be5 {[%emt 0:00:30]} 37. Rd3 {[%emt 0:00:30]} Rdd8 {[%emt 0:00:30]} 38. Re2 {[%emt 0:00:30]} Bb8 {[%emt 0:00:30]} 39. Nb6 {[%emt 0:00:30]} Rxd3 40. Kxd3 {[%emt 0:00:30]} g5 {[%emt 0:01:00]} 41. Kc2 {[%emt 0:00:30]} Kg6 {[%emt 0:00:30]} 42. Re1 {[%emt 0:00:30]} Be5 {[%emt 0:00:30]} 43. Nd5 {[%emt 0:00:30]} Bd6 {[%emt 0:00:30]} 44. h4 {[%emt 0:00:30]} Ne5 {[%emt 0:00:30]} 45. Nxe5+ {[%emt 0:00:30]} Bxe5 {[%emt 0:00:30]} 46. h5+ {[%emt 0:00:30]} Kf7 {[%emt 0:00:30]} 47. Rd1 {[%emt 0:00:30]} Bd6 {[%emt 0:00:30]} 48. Re1 {[%emt 0:00:30]} Re6 {[%emt 0:00:30]} 49. Ne3 {[%emt 0:00:30]} Bf8 {[%emt 0:00:30]} 50. Nf5 {[%emt 0:00:30]} Ke8 {[%emt 0:00:30]} 51. Bg3 {[%emt 0:00:30]} Na5 {[%emt 0:00:30]} 52. e5 {[%emt 0:00:30]} Kf7 {[%emt 0:00:30]} 53. exf6 {[%emt 0:00:30]} Rxe1 {[%emt 0:00:30]} 54. Bxe1 {[%emt 0:00:30]} Kxf6 {[%emt 0:00:30]} 55. Bg3 {[%emt 0:00:30]} Ke6 {[%emt 0:00:30]} 56. Bc7 {[%emt 0:00:30]} Nc6 {[%emt 0:00:30]} 57. Kd3 {[%emt 0:00:30]} Kd7 {[%emt 0:00:30]} 58. Bg3 {[%emt 0:00:30]} Na5 {[%emt 0:00:30]} 59. Kc2 {[%emt 0:00:30]} Ke6 {[%emt 0:00:30]} 60. Bh2 {[%emt 0:00:30]} Nc6 {[%emt 0:00:30]} 61. Bc7 {[%emt 0:00:30]} Kd7 {[%emt 0:00:30]} 62. Bg3 {[%emt 0:00:30]} Na5 {[%emt 0:00:30]} 63. Be5 {[%emt 0:00:30]} Nc6 {[%emt 0:00:30]} 64. Bb2 {[%emt 0:00:30]} Ke6 {[%emt 0:00:30]} 65. Ba1 {[%emt 0:00:30]} Kf7 {[%emt 0:00:30]} 66. Bh8 {[%emt 0:00:30]} Kg8 {[%emt 0:00:30]} 67. Bb2 {[%emt 0:00:30]} Kf7 {[%emt 0:00:30]} 68. Kd3 {[%emt 0:00:30]} Na5 {[%emt 0:00:30]} 69. Kc2 {[%emt 0:00:30]} Nc6 {[%emt 0:00:30]} 70. Ba1 {[%emt 0:00:30]} Kg8 {[%emt 0:00:30]} 71. Ng3 {[%emt 0:00:30]} Kf7 {[%emt 0:00:30]} 72. Ne4 {[%emt 0:00:30]} Ke6 {[%emt 0:00:30]} 73. Kd3 {[%emt 0:00:30]} Na5 {[%emt 0:00:30]} 74. Nd2 {[%emt 0:00:30]} Nb7 {[%emt 0:00:30]} 75. Bb2 {[%emt 0:00:30]} Na5 {[%emt 0:00:30]} 76. Kc2 {[%emt 0:00:30]} Nc6 {[%emt 0:00:30]} 77. Nf3 {[%emt 0:00:30]} Kd6 {[%emt 0:00:30]} 78. Bf6 {[%emt 0:00:30]} Ke6 {[%emt 0:00:30]} 79. Ba1 {[%emt 0:00:30]} Kd6 {[%emt 0:00:30]} 80. Kd3 {[%emt 0:00:30]} Na5 {[%emt 0:00:30]} 81. Be5+ {[%emt 0:00:30]} Ke6 {[%emt 0:00:30]} 82. Kc2 {[%emt 0:00:30]} Nc6 {[%emt 0:00:30]} 83. Bh8 {[%emt 0:00:30]} Kd6 {[%emt 0:00:30]} 84. Kd3 {[%emt 0:00:30]} Ke6 {[%emt 0:00:30]} 85. Nd2 {[%emt 0:00:30]} Na5 {[%emt 0:00:30]} 86. Bb2 {[%emt 0:00:30]} Nc6 {[%emt 0:00:30]} 87. Nf3 {[%emt 0:00:30]} Na5 {[%emt 0:00:30]} 88. Kc2 {[%emt 0:00:30]} Nc6 {[%emt 0:00:30]} 1/2-1/2

[Event "Fall IM Norm Invitational 2020"]
[Site "Charlotte"]
[Date "2020.10.05"]
[Round "9.1"]
[White "Matros, Alexander"]
[Black "Stearman, Josiah"]
[Result "0-1"]
[ECO "B30"]
[WhiteElo "2417"]
[BlackElo "2354"]
[Annotator "ChessBase"]
[PlyCount "88"]
[EventDate "2020.09.30"]
[EventType "tourn"]
[EventCountry "USA"]
[SourceTitle "playchess.com"]
[Source "ChessBase"]
[SourceQuality "1"]
[TimeControl "5400+30"]

1. e4 {[%emt 1:30:30]} c5 {[%emt 1:30:30]} 2. b3 {[%emt 0:00:30]} Nc6 {[%emt 0:00:30]} 3. Bb2 {[%emt 0:00:30]} Nf6 {[%emt 0:00:30]} 4. e5 {[%emt 0:00:30]} Nd5 {[%emt 0:00:30]} 5. Nf3 {[%emt 0:00:30]} Nc7 {[%emt 0:00:30]} 6. Nc3 {[%emt 0:00:30]} d5 {[%emt 0:00:30]} 7. exd6 {[%emt 0:00:30]} exd6 {[%emt 0:00:30]} 8. Be2 {[%emt 0:00:30]} Be7 {[%emt 0:00:30]} 9. d4 {[%emt 0:00:30]} Bf5 {[%emt 0:00:30]} 10. O-O {[%emt 0:00:30]} Bf6 {[%emt 0:00:30]} 11. Nb5 {[%emt 0:00:30]} O-O {[%emt 0:00:30]} 12. c3 {[%emt 0:00:30]} Nd5 {[%emt 0:00:30]} 13. Qd2 {[%emt 0:00:30]} a6 {[%emt 0:00:30]} 14. Na3 {[%emt 0:00:30]} Re8 {[%emt 0:00:30]} 15. Rfe1 {[%emt 0:00:30]} cxd4 {[%emt 0:00:30]} 16. cxd4 {[%emt 0:00:30]} Be4 {[%emt 0:00:30]} 17. Nc4 {[%emt 0:00:30]} b5 {[%emt 0:00:30]} 18. Ne3 {[%emt 0:00:30]} Ncb4 {[%emt 0:00:30]} 19. Nxd5 {[%emt 0:00:30]} Nxd5 {[%emt 0:00:30]} 20. h4 {[%emt 0:00:30]} Bxh4 {[%emt 0:00:30]} 21. Nxh4 {[%emt 0:00:30]} Qxh4 {[%emt 0:00:30]} 22. f3 {[%emt 0:00:30]} Bf5 {[%emt 0:00:30]} 23. Bf1 {[%emt 0:00:30]} Rac8 {[%emt 0:00:30]} 24. Rxe8+ {[%emt 0:00:30]} Rxe8 {[%emt 0:00:30]} 25. a4 {[%emt 0:00:30]} Bd7 {[%emt 0:00:30]} 26. Qf2 {[%emt 0:00:30]} Qe7 {[%emt 0:00:30]} 27. Bc1 {[%emt 0:00:30]} h6 {[%emt 0:00:30]} 28. Bd2 {[%emt 0:00:30]} Rc8 {[%emt 0:00:30]} 29. Bd3 {[%emt 0:00:30]} Qf6 {[%emt 0:00:30]} 30. g3 {[%emt 0:00:30]} Bf5 {[%emt 0:00:30]} 31. Be4 {[%emt 0:00:30]} Bxe4 {[%emt 0:00:30]} 32. fxe4 {[%emt 0:00:30]} Qxf2+ {[%emt 0:00:30]} 33. Kxf2 {[%emt 0:00:30]} Nf6 {[%emt 0:00:30]} 34. Kf3 {[%emt 0:00:30]} Rc2 {[%emt 0:00:30]} 35. Bb4 {[%emt 0:00:30]} d5 {[%emt 0:00:30]} 36. e5 {[%emt 0:00:30]} Ne4 {[%emt 0:00:30]} 37. axb5 {[%emt 0:00:30]} axb5 {[%emt 0:00:30]} 38. Ra8+ {[%emt 0:00:30]} Kh7 {[%emt 0:00:30]} 39. Rd8 {[%emt 0:00:30]} Ng5+ {[%emt 0:00:30]} 40. Kg4 {[%emt 0:00:30]} Re2 {[%emt 0:00:30]} 41. Rxd5 {[%emt 0:00:30]} Kg6 {[%emt 0:00:30]} 42. Kh4 {[%emt 0:00:30]} Re4+ {[%emt 0:00:30]} 43. g4 {[%emt 0:00:30]} Re3 {[%emt 0:00:30]} 44. Rd6+ {[%emt 0:00:30]} f6 {[%emt 0:00:30]} 0-1

[Event "Fall IM Norm Invitational 2020"]
[Site "Charlotte"]
[Date "2020.10.05"]
[Round "9.2"]
[White "Vivekananthan, Anish"]
[Black "Francisco, Richard"]
[Result "1-0"]
[ECO "B35"]
[WhiteElo "2239"]
[BlackElo "2303"]
[Annotator "ChessBase"]
[PlyCount "81"]
[EventDate "2020.09.30"]
[EventType "tourn"]
[EventCountry "USA"]
[SourceTitle "playchess.com"]
[Source "ChessBase"]
[SourceQuality "1"]
[TimeControl "5400+30"]

1. e4 {[%emt 1:30:30]} c5 {[%emt 1:30:30]} 2. Nf3 {[%emt 0:00:30]} Nc6 {[%emt 0:00:30]} 3. d4 {[%emt 0:00:30]} cxd4 {[%emt 0:00:30]} 4. Nxd4 {[%emt 0:00:30]} g6 {[%emt 0:00:30]} 5. Nc3 {[%emt 0:00:30]} Bg7 {[%emt 0:00:30]} 6. Be3 {[%emt 0:00:30]} Nf6 {[%emt 0:00:30]} 7. Bc4 {[%emt 0:00:30]} O-O {[%emt 0:00:30]} 8. Bb3 {[%emt 0:00:30]} Re8 {[%emt 0:00:30]} 9. h3 {[%emt 0:00:30]} d6 {[%emt 0:00:30]} 10. O-O {[%emt 0:00:30]} Na5 {[%emt 0:00:30]} 11. Qd2 {[%emt 0:00:30]} a6 {[%emt 0:00:30]} 12. Bh6 {[%emt 0:00:30]} Nxb3 {[%emt 0:00:30]} 13. axb3 {[%emt 0:00:30]} b5 {[%emt 0:00:30]} 14. Bxg7 {[%emt 0:00:30]} Kxg7 {[%emt 0:00:30]} 15. Ndxb5 {[%emt 0:00:30]} Bb7 {[%emt 0:00:30]} 16. e5 {[%emt 0:00:30]} Nd7 {[%emt 0:00:30]} 17. Na3 {[%emt 0:00:30]} Nxe5 {[%emt 0:00:30]} 18. Nc4 {[%emt 0:00:30]} Nxc4 {[%emt 0:00:30]} 19. bxc4 {[%emt 0:00:30]} Qc7 {[%emt 0:00:30]} 20. b3 {[%emt 0:00:30]} Qc5 {[%emt 0:00:30]} 21. Rfe1 {[%emt 0:00:30]} Rad8 {[%emt 0:00:30]} 22. Rad1 {[%emt 0:00:30]} f6 {[%emt 0:00:30]} 23. Nd5 {[%emt 0:00:30]} e6 {[%emt 0:00:30]} 24. Nf4 {[%emt 0:00:30]} Kf7 {[%emt 0:00:30]} 25. Re3 {[%emt 0:00:30]} Qc6 {[%emt 0:00:30]} 26. Qd3 {[%emt 0:00:30]} f5 {[%emt 0:00:30]} 27. Rde1 {[%emt 0:00:30]} e5 {[%emt 0:00:30]} 28. Nd5 {[%emt 0:00:30]} Qc5 {[%emt 0:00:30]} 29. Rd1 {[%emt 0:00:30]} Rc8 {[%emt 0:00:30]} 30. Qe2 {[%emt 0:00:30]} e4 {[%emt 0:00:30]} 31. h4 {[%emt 0:00:30]} Qa5 {[%emt 0:00:30]} 32. Rg3 {[%emt 0:00:30]} Bxd5 {[%emt 0:00:30]} 33. Rxd5 {[%emt 0:00:30]} Qa1+ {[%emt 0:00:30]} 34. Kh2 {[%emt 0:00:30]} Qf6 {[%emt 0:00:30]} 35. Qd2 {[%emt 0:00:30]} Re6 {[%emt 0:00:30]} 36. Qh6 {[%emt 0:00:30]} Rh8 {[%emt 0:00:30]} 37. Ra5 {[%emt 0:00:30]} Re7 {[%emt 0:00:30]} 38. Rxa6 {[%emt 0:00:30]} Qd4 {[%emt 0:00:30]} 39. Qf4 {[%emt 0:00:30]} Re6 {[%emt 0:00:30]} 40. Ra5 {[%emt 0:00:30]} Re5 {[%emt 0:00:30]} 41. c3 {[%emt 0:00:30]} 1-0

[Event "Fall IM Norm Invitational 2020"]
[Site "Charlotte"]
[Date "2020.10.05"]
[Round "9.3"]
[White "Li, Eric"]
[Black "Krykun, Yuriy"]
[Result "0-1"]
[ECO "A40"]
[WhiteElo "2334"]
[BlackElo "2371"]
[Annotator "ChessBase"]
[PlyCount "158"]
[EventDate "2020.09.30"]
[EventType "tourn"]
[EventCountry "USA"]
[SourceTitle "playchess.com"]
[Source "ChessBase"]
[SourceQuality "1"]
[TimeControl "5400+30"]

1. d4 {[%emt 1:30:30]} e6 {[%emt 1:30:30]} 2. c4 {[%emt 0:00:30]} b6 {[%emt 0:00:30]} 3. e4 {[%emt 0:00:30]} Bb7 {[%emt 0:00:30]} 4. Bd3 {[%emt 0:00:30]} Nc6 {[%emt 0:00:30]} 5. d5 {[%emt 0:00:30]} Ne5 {[%emt 0:00:30]} 6. Nf3 {[%emt 0:00:30]} Nxd3+ {[%emt 0:00:30]} 7. Qxd3 {[%emt 0:00:30]} Bb4+ {[%emt 0:00:30]} 8. Nbd2 {[%emt 0:00:30]} Ne7 {[%emt 0:00:30]} 9. a3 {[%emt 0:00:30]} Bxd2+ {[%emt 0:00:30]} 10. Bxd2 {[%emt 0:00:30]} d6 {[%emt 0:00:30]} 11. Nd4 {[%emt 0:00:30]} e5 {[%emt 0:00:30]} 12. Ne2 {[%emt 0:00:30]} a5 {[%emt 0:00:30]} 13. b3 {[%emt 0:00:30]} O-O {[%emt 0:00:30]} 14. O-O {[%emt 0:00:30]} Ng6 {[%emt 0:00:30]} 15. b4 {[%emt 0:00:30]} axb4 {[%emt 0:00:30]} 16. axb4 {[%emt 0:00:30]} Qd7 {[%emt 0:00:30]} 17. b5 {[%emt 0:00:30]} Ne7 {[%emt 0:00:30]} 18. Bc3 {[%emt 0:00:30]} f6 {[%emt 0:00:30]} 19. f3 {[%emt 0:00:30]} Rfb8 {[%emt 0:00:30]} 20. Rxa8 {[%emt 0:00:30]} Rxa8 {[%emt 0:00:30]} 21. Ra1 {[%emt 0:00:30]} Qc8 {[%emt 0:00:30]} 22. Qb1 {[%emt 0:00:30]} Qb8 {[%emt 0:00:30]} 23. g4 {[%emt 0:00:30]} Bc8 {[%emt 0:00:30]} 24. Rxa8 {[%emt 0:00:30]} Qxa8 {[%emt 0:00:30]} 25. Qa1 {[%emt 0:00:30]} Qb8 {[%emt 0:00:30]} 26. Nc1 {[%emt 0:00:30]} Bd7 {[%emt 0:00:30]} 27. Nd3 {[%emt 0:00:30]} h5 {[%emt 0:00:30]} 28. h3 {[%emt 0:00:30]} hxg4 {[%emt 0:00:30]} 29. hxg4 {[%emt 0:00:30]} Kf7 {[%emt 0:00:30]} 30. Kg2 {[%emt 0:00:30]} Ng6 {[%emt 0:00:30]} 31. Be1 {[%emt 0:00:30]} Qc8 {[%emt 0:00:30]} 32. Kg3 {[%emt 0:00:30]} Qh8 {[%emt 0:00:30]} 33. Kg2 {[%emt 0:00:30]} Qc8 {[%emt 0:00:30]} 34. Kg3 {[%emt 0:00:30]} Qh8 {[%emt 0:00:30]} 35. Kg2 {[%emt 0:00:30]} Qb8 {[%emt 0:00:30]} 36. Bg3 {[%emt 0:00:30]} Qc8 {[%emt 0:00:30]} 37. Nf2 {[%emt 0:00:30]} Ne7 {[%emt 0:00:30]} 38. Bh4 {[%emt 0:00:30]} g6 {[%emt 0:00:30]} 39. Qa2 {[%emt 0:00:30]} Qh8 {[%emt 0:00:30]} 40. Bg3 {[%emt 0:00:30]} f5 {[%emt 0:00:30]} 41. Qa7 {[%emt 0:00:30]} f4 {[%emt 0:00:30]} 42. Bh2 {[%emt 0:00:30]} Qc8 {[%emt 0:00:30]} 43. Kf1 {[%emt 0:00:30]} g5 {[%emt 0:00:30]} 44. Bg1 {[%emt 0:00:30]} Ng8 {[%emt 0:00:30]} 45. Nd3 {[%emt 0:00:30]} Nf6 {[%emt 0:00:30]} 46. Nf2 {[%emt 0:00:30]} Kg6 {[%emt 0:00:30]} 47. Qa3 {[%emt 0:00:30]} Bxg4 {[%emt 0:00:30]} 48. fxg4 {[%emt 0:00:30]} Nxg4 {[%emt 0:00:30]} 49. Qa6 {[%emt 0:00:30]} Ne3+ {[%emt 0:00:30]} 50. Ke1 {[%emt 0:00:30]} Qd8 {[%emt 0:00:30]} 51. Qb7 {[%emt 0:00:30]} Nxc4 {[%emt 0:00:30]} 52. Qc6 {[%emt 0:00:30]} Na5 {[%emt 0:00:30]} 53. Qc3 {[%emt 0:00:30]} Qd7 {[%emt 0:00:30]} 54. Nd3 {[%emt 0:00:30]} Qxb5 {[%emt 0:00:30]} 55. Qxc7 {[%emt 0:00:30]} Qxd3 {[%emt 0:00:30]} 56. Qxd6+ {[%emt 0:00:30]} Kh5 {[%emt 0:00:30]} 57. Qxe5 {[%emt 0:00:30]} Qb1+ {[%emt 0:00:30]} 58. Kf2 {[%emt 0:00:30]} Qc2+ {[%emt 0:00:30]} 59. Ke1 {[%emt 0:00:30]} Nc4 60. Qe6 {[%emt 0:00:30]} Qc1+ {[%emt 0:01:00]} 61. Ke2 {[%emt 0:00:30]} Qd2+ {[%emt 0:00:30]} 62. Kf1 {[%emt 0:00:30]} Ne3+ {[%emt 0:00:30]} 63. Bxe3 {[%emt 0:00:30]} Qxe3 {[%emt 0:00:30]} 64. d6 {[%emt 0:00:30]} Kh4 {[%emt 0:00:30]} 65. Qh6+ {[%emt 0:00:30]} Kg4 {[%emt 0:00:30]} 66. Qg6 {[%emt 0:00:30]} Qd3+ {[%emt 0:00:30]} 67. Kf2 {[%emt 0:00:30]} Qd2+ {[%emt 0:00:30]} 68. Kf1 {[%emt 0:00:30]} Kf3 {[%emt 0:00:30]} 69. Qh5+ {[%emt 0:00:30]} Ke3 {[%emt 0:00:30]} 70. Qh3+ {[%emt 0:00:30]} f3 {[%emt 0:00:30]} 71. Qg3 {[%emt 0:00:30]} g4 {[%emt 0:00:30]} 72. Qg1+ {[%emt 0:00:30]} Kf4 {[%emt 0:00:30]} 73. Qf2 {[%emt 0:00:30]} Qd1+ {[%emt 0:00:30]} 74. Qe1 {[%emt 0:00:30]} Qxd6 {[%emt 0:00:30]} 75. Qc1+ {[%emt 0:00:30]} Kg3 {[%emt 0:00:30]} 76. Qe1+ {[%emt 0:00:30]} Kh3 {[%emt 0:00:30]} 77. Qf2 {[%emt 0:00:30]} Qd1+ {[%emt 0:00:30]} 78. Qe1 {[%emt 0:00:30]} Qxe1+ {[%emt 0:00:30]} 79. Kxe1 {[%emt 0:00:30]} Kg2 {[%emt 0:00:30]} 0-1